bitfinex-derivatives/quotes_SOLF0:USTF0_20240905
["timestamp","ask_amount","ask_price","bid_price","bid_amount"]
[1725520281351,3.85775699,132.88,132.8,3.765]
[1725520281653,3.85775699,132.88,132.74,1.3447]
[1725520281654,0.27692412,132.87,132.78,23.15]
[1725520281856,3.7644,132.83,132.79,3.7652]
[1725520282160,23.15,132.86,132.78,23.15]
[1725520282360,0.05515755,132.83,132.81,0.05578264]
[1725520282555,0.04821682,132.83,132.81,0.04992424]
[1725520282855,3.81281682,132.83,132.81,0.04992424]
[1725520283059,0.04821682,132.83,132.81,0.04992424]
[1725520283557,3.7646,132.82,132.81,0.04992424]
[1725520283756,24.4669,132.83,132.73,23.15]
[1725520284355,24.4669,132.83,132.73,26.90244692]
[1725520284356,23.42695719,132.82,132.73,26.90244692]
[1725520284551,23.15,132.82,132.73,26.90244692]
[1725520284760,0.05369797,132.79,132.76,3.82239079]
[1725520286154,0.05369797,132.79,132.76,0.05609079]
[1725520287859,0.05369797,132.79,132.77,3.7659]
[1725520288066,0.05369797,132.79,132.76,0.05609079]
[1725520289264,0.05369797,132.79,132.77,3.7658]
[1725520289967,0.05369797,132.79,132.78,3.7658]
[1725520291963,24.5822,132.87,132.8,3.765]
[1725520292159,0.27690594,132.86,132.8,3.765]
[1725520292572,3.764,132.85,132.78,23.15]
[1725520292768,111.23930141,132.92,132.84,23.15]
[1725520292769,107.54082266,132.92,132.84,23.15]
[1725520293075,0.05805997,132.89,132.87,0.0566526]
[1725520293672,3.82085997,132.89,132.87,0.0566526]
[1725520293969,3.74679837,132.93,132.87,0.0566526]
[1725520294171,3.7624,132.9,132.87,0.0566526]
[1725520294374,23.15,132.92,132.87,0.0566526]
[1725520294761,5.27763796,132.94,132.87,0.0566526]
[1725520294964,0.05687924,132.92,132.87,0.0566526]
[1725520295167,3.81897924,132.92,132.87,3.8198526]
[1725520295368,0.05687924,132.92,132.87,0.0566526]
[1725520296367,3.7622,132.91,132.87,3.8198526]
[1725520296766,0.05687924,132.92,132.87,0.0566526]
[1725520296965,3.7627,132.89,132.87,0.0566526]
[1725520297164,3.81801565,132.89,132.87,0.0566526]
[1725520297569,0.05531565,132.89,132.87,0.0566526]
[1725520299461,3.81801565,132.89,132.87,0.0566526]
[1725520302471,0.05531565,132.89,132.87,3.8197526]
[1725520302663,0.05531565,132.89,132.87,23.2066526]
[1725520302870,0.05531565,132.89,132.88,23.15]
[1725520303877,0.05531565,132.89,132.88,26.9129]
[1725520304277,3.67472146,132.96,132.88,23.15]
[1725520304481,3.761,132.95,132.91,26.9119]
[1725520304775,3.67472146,132.96,132.91,23.15]
[1725520305167,0.05256744,132.95,132.93,3.7614]
[1725520305669,0.05256744,132.95,132.92,0.05202102]
[1725520305670,0.05256744,132.95,132.94,3.7612]
[1725520305871,0.05256744,132.95,132.92,0.05202102]
[1725520306267,0.05256744,132.95,132.93,3.7613]
[1725520306473,0.05256744,132.95,132.92,0.05202102]
[1725520307384,3.7615,132.94,132.92,0.05202102]
[1725520307871,0.05256744,132.95,132.92,0.05202102]
[1725520308072,3.7612,132.94,132.92,0.05202102]
[1725520308274,0.05256744,132.95,132.92,0.05202102]
[1725520308575,3.81376744,132.95,132.92,0.05202102]
[1725520308977,3.7614,132.94,132.92,0.05202102]
[1725520310080,0.05256744,132.95,132.92,0.05202102]
[1725520310081,3.7615,132.93,132.92,0.05202102]
[1725520312778,0.05256744,132.95,132.92,0.05202102]
[1725520312978,3.7613,132.94,132.92,0.05202102]
[1725520315277,3.81376744,132.95,132.92,0.05202102]
[1725520315482,0.05256744,132.95,132.92,0.05202102]
[1725520315872,3.7613,132.94,132.92,0.05202102]
[1725520316482,3.7615,132.93,132.92,0.05202102]
[1725520317181,0.05256744,132.95,132.92,0.05202102]
[1725520317877,0.05256744,132.95,132.93,3.7615]
[1725520318481,0.05256744,132.95,132.92,0.05202102]
[1725520318689,0.05256744,132.95,132.92,3.81362102]
[1725520320081,0.05256744,132.95,132.94,3.7612]
[1725520321791,0.05256744,132.95,132.93,26.9113]
[1725520322090,0.05256744,132.95,132.93,3.7613]
[1725520322291,0.05256744,132.95,132.92,26.96372102]
[1725520322791,3.81366744,132.95,132.92,23.20202102]
[1725520322991,0.05256744,132.95,132.92,23.20202102]
[1725520323291,3.81366744,132.95,132.92,23.20202102]
[1725520323684,0.05256744,132.95,132.93,23.15]
[1725520323883,0.05256744,132.95,132.94,3.7612]
[1725520324180,1.3626,132.99,132.93,23.15]
[1725520324386,1.3626,132.99,132.96,23.15]
[1725520324686,1.3626,132.99,132.96,26.9105]
[1725520325087,1.3626,132.99,132.96,26.96380486]
[1725520325887,5.14993423,132.99,132.96,0.05330486]
[1725520326385,5.14993423,132.99,132.92,23.15]
[1725520326590,23.15,132.97,132.9,26.9122]
[1725520326893,23.15,132.97,132.87,3.7632]
[1725520327084,23.15,132.94,132.73,7.5339]
[1725520327391,22.7,132.97,132.88,0.04758827]
[1725520327392,3.81447123,132.9,132.88,0.04758827]
[1725520327597,3.81447123,132.9,132.86,23.15]
[1725520327598,3.7626,132.9,132.86,23.15]
[1725520327888,0.05160398,132.9,132.88,0.05433041]
[1725520328087,3.7626,132.89,132.88,0.05433041]
[1725520332191,0.05160398,132.9,132.88,0.05433041]
[1725520332695,0.05160398,132.9,132.89,23.15]
[1725520332891,0.05160398,132.9,132.89,26.9126]
[1725520334299,3.7613,132.94,132.9,3.7621]
[1725520334496,3.7613,132.94,132.91,23.15]
[1725520334988,3.7615,132.93,132.91,23.15]
[1725520335293,2.7229,132.97,132.91,23.15]
[1725520335496,2.7229,132.97,132.91,0.04894601]
[1725520337295,3.7612,132.95,132.91,0.04894601]
[1725520337496,2.7229,132.97,132.91,0.04894601]
[1725520337891,25.8729,132.97,132.91,0.04894601]
[1725520338094,23.15,132.93,132.86,23.15]
[1725520338495,3.7625,132.9,132.86,26.9133]
[1725520339194,3.7625,132.9,132.87,0.05586623]
[1725520339195,0.04764455,132.89,132.87,0.05586623]
[1725520339802,3.81034455,132.89,132.87,0.05586623]
[1725520341503,3.7629,132.88,132.87,0.05586623]
[1725520341706,23.15,132.88,132.8,25.9065]
[1725520341902,3.764,132.85,132.81,3.7649]
[1725520342604,0.05511472,132.84,132.82,0.04746562]
[1725520342907,3.81941472,132.84,132.82,0.04746562]
[1725520343108,0.05511472,132.84,132.82,0.04746562]
[1725520344805,3.81931472,132.84,132.82,0.04746562]
[1725520346912,3.7643,132.83,132.82,0.04746562]
[1725520349714,0.05511472,132.84,132.82,0.04746562]
[1725520349918,0.05511472,132.84,132.82,23.19746562]
[1725520350216,3.7625,132.9,132.82,23.19746562]
[1725520350514,5.01271238,132.91,132.85,23.15]
[1725520350811,5.01271238,132.91,132.84,23.15]
[1725520351221,0.04996477,132.89,132.86,0.05171513]
[1725520351615,3.81276477,132.89,132.86,0.05171513]
[1725520353118,3.763,132.88,132.86,0.05171513]
[1725520353916,3.7632,132.87,132.86,0.05171513]
[1725520354820,3.7635,132.86,132.82,26.9145]
[1725520355817,0.05346351,132.85,132.83,0.05654446]
[1725520356525,0.05346351,132.85,132.83,3.82084446]
[1725520357314,0.05346351,132.85,132.83,0.05654446]
[1725520357920,3.81736351,132.85,132.83,0.05654446]
[1725520360627,3.7641,132.84,132.83,0.05654446]
[1725520362124,3.81881696,132.84,132.73,1.3422]
[1725520362332,1.3556,132.84,132.75,23.15]
[1725520362630,5.20002386,132.84,132.75,23.15]
[1725520362824,1.3556,132.84,132.75,23.15]
[1725520363030,1.3556,132.84,132.78,0.04824195]
[1725520363235,0.0573418,132.81,132.78,0.04824195]
[1725520363426,3.8224418,132.81,132.78,0.04824195]
[1725520364324,3.7652,132.8,132.78,0.04824195]
[1725520366226,3.8223418,132.81,132.78,0.04824195]
[1725520366625,0.0573418,132.81,132.78,0.04824195]
[1725520366826,3.7654,132.8,132.78,0.04824195]
[1725520367221,0.0573418,132.81,132.78,0.04824195]
[1725520367634,1.3507418,132.81,132.78,0.04824195]
[1725520368131,3.7654,132.8,132.78,0.04824195]
[1725520368527,3.7655,132.79,132.78,0.04824195]
[1725520370930,1.432,132.8,132.78,0.04824195]
[1725520371132,0.0573418,132.81,132.78,0.04824195]
[1725520372133,3.8222418,132.81,132.78,3.81394195]
[1725520372527,3.8222418,132.81,132.78,0.04824195]
[1725520374434,3.7652,132.8,132.78,0.04824195]
[1725520374638,0.0573418,132.81,132.78,0.04824195]
[1725520375130,3.7655,132.79,132.78,0.04824195]
[1725520375736,3.7653,132.8,132.78,0.04824195]
[1725520376429,3.7655,132.79,132.78,0.04824195]
[1725520386945,1.3844418,132.81,132.78,0.04824195]
[1725520387255,0.0573418,132.81,132.78,0.04824195]
[1725520387547,0.0573418,132.81,132.8,3.7652]
[1725520387743,0.0573418,132.81,132.8,26.9252]
[1725520388345,2.7704,132.89,132.84,3.7641]
[1725520388541,3.68831462,132.89,132.84,3.7641]
[1725520388754,3.7628,132.89,132.84,26.9241]
[1725520388943,7.4902919,132.89,132.84,26.9241]
[1725520389350,0.05007392,132.88,132.85,0.05186904]
[1725520389952,3.81307392,132.88,132.85,0.05186904]
[1725520391048,3.7633,132.87,132.85,0.05186904]
[1725520392550,0.05007392,132.88,132.85,0.05186904]
[1725520392551,3.81307392,132.88,132.85,0.05186904]
[1725520392856,0.05007392,132.88,132.85,0.05186904]
[1725520394153,3.7635,132.86,132.85,0.05186904]
[1725520395351,3.7633,132.87,132.85,0.05186904]
[1725520395558,0.05007392,132.88,132.85,0.05186904]
[1725520395759,0.05007392,132.88,132.85,23.21186904]
[1725520396055,0.05007392,132.88,132.85,26.97546904]
[1725520396256,0.05007392,132.88,132.85,23.21186904]
[1725520396458,0.05007392,132.88,132.87,3.7632]
[1725520398961,0.05007392,132.88,132.87,7.60901444]
[1725520399152,0.05007392,132.88,132.87,3.7632]
[1725520400858,0.05007392,132.88,132.85,0.05186904]
[1725520401260,0.05007392,132.88,132.86,3.7633]
[1725520404053,0.05007392,132.88,132.87,3.7632]
[1725520407460,26.9962787,132.96,132.9,3.7623]
[1725520407655,3.8362787,132.96,132.9,3.7623]
[1725520407855,3.7617,132.93,132.9,3.7623]
[1725520408766,3.81089393,132.93,132.9,0.05461706]
[1725520409661,3.81089393,132.93,132.9,3.81691706]
[1725520410665,3.7619,132.92,132.9,0.05461706]
[1725520416574,3.7621,132.91,132.9,0.05461706]
[1725520418079,7.56610824,132.91,132.9,0.05461706]
[1725520418273,3.7628,132.89,132.81,1.4065]
[1725520418478,3.7628,132.89,132.85,9.26]
[1725520418978,3.7625,132.9,132.86,13.0233]
[1725520419173,2.7424,132.92,132.86,9.26]
[1725520419481,0.05715043,132.9,132.88,0.05241732]
[1725520420584,3.81955043,132.9,132.88,0.05241732]
[1725520422577,3.7626,132.89,132.88,0.05241732]
[1725520423175,0.05715043,132.9,132.88,0.05241732]
[1725520423778,3.81975043,132.9,132.88,0.05241732]
[1725520423978,7.50651646,132.9,132.88,0.05241732]
[1725520424477,3.7626,132.89,132.88,0.05241732]
[1725520424886,3.74391646,132.9,132.88,0.05241732]
[1725520425474,3.81965043,132.9,132.88,0.05241732]
[1725520426481,0.05715043,132.9,132.88,0.05241732]
[1725520426875,0.05715043,132.9,132.88,3.81531732]
[1725520427681,0.05715043,132.9,132.88,0.05241732]
[1725520428185,3.7626,132.89,132.88,0.05241732]
[1725520428391,13.0226,132.89,132.88,0.05241732]
[1725520428883,13.0226,132.89,132.81,2.7866]
[1725520428884,9.26,132.89,132.82,13.04688647]
[1725520429084,7.86613621,132.92,132.82,9.26]
[1725520429085,9.26,132.88,132.82,9.26]
[1725520429284,9.26,132.85,132.78,3.71461909]
[1725520429584,13.0249,132.82,132.77,3.68601324]
[1725520429789,13.0249,132.82,132.76,9.26]
[1725520430082,0.05781499,132.8,132.78,0.0486427]
[1725520430286,0.05781499,132.8,132.78,9.3086427]
[1725520430492,0.05781499,132.8,132.79,13.0255]
[1725520430789,9.26,132.9,132.83,9.26]
[1725520430989,9.26,132.9,132.8,37.04]
[1725520430990,9.26,132.9,132.84,13.0238]
[1725520431185,13.02392652,132.9,132.84,13.0238]
[1725520431684,0.05358141,132.88,132.86,0.04889182]
[1725520432288,3.81668141,132.88,132.86,0.04889182]
[1725520432884,0.05358141,132.88,132.86,0.04889182]
[1725520433880,0.05358141,132.88,132.86,9.30889182]
[1725520434287,0.05358141,132.88,132.87,3.7632]
[1725520435288,0.05358141,132.88,132.86,13.07229182]
[1725520435583,0.05358141,132.88,132.86,3.81229182]
[1725520436482,0.05358141,132.88,132.86,13.07229182]
[1725520437294,0.05358141,132.88,132.87,3.7632]
[1725520437683,0.05358141,132.88,132.86,0.04889182]
[1725520438495,3.81668141,132.88,132.86,0.04889182]
[1725520438890,0.05358141,132.88,132.86,0.04889182]
[1725520439488,9.31358141,132.88,132.86,0.04889182]
[1725520439893,0.05358141,132.88,132.86,0.04889182]
[1725520440490,0.05358141,132.88,132.86,3.81239182]
[1725520440691,0.05358141,132.88,132.86,0.04889182]
[1725520441296,0.05358141,132.88,132.86,3.81229182]
[1725520442397,3.81648141,132.88,132.86,0.04889182]
[1725520443390,3.7632,132.87,132.86,0.04889182]
[1725520444893,3.81658141,132.88,132.86,0.04889182]
[1725520445597,0.05358141,132.88,132.86,0.04889182]
[1725520446189,3.81668141,132.88,132.86,0.04889182]
[1725520448597,0.05358141,132.88,132.86,0.04889182]
[1725520449192,3.7632,132.87,132.86,0.04889182]
[1725520450300,3.81668141,132.88,132.86,0.04889182]
[1725520450902,0.05358141,132.88,132.86,0.04889182]
[1725520451403,3.81668141,132.88,132.86,0.04889182]
[1725520452194,3.7632,132.87,132.86,0.04889182]
[1725520459404,3.81658141,132.88,132.86,0.04889182]
[1725520462106,3.7632,132.87,132.86,0.04889182]
[1725520463705,13.0232,132.87,132.86,0.04889182]
[1725520464508,3.7642,132.84,132.81,3.7648]
[1725520464713,7.57736364,132.84,132.81,3.7648]
[1725520464908,13.0239,132.85,132.79,9.26]
[1725520465111,3.7639,132.85,132.81,9.26]
[1725520465512,0.05378328,132.84,132.82,0.05615599]
[1725520466318,0.05378328,132.84,132.82,3.82075599]
[1725520466809,0.05378328,132.84,132.82,0.05615599]
[1725520466810,3.81798328,132.84,132.82,0.05615599]
[1725520467710,0.05378328,132.84,132.82,0.05615599]
[1725520467917,3.7643,132.83,132.82,0.05615599]
[1725520469816,9.26,132.83,132.74,1.4058]
[1725520470015,9.26,132.8,132.74,1.4058]
[1725520470511,3.7659,132.78,132.74,5.1725]
[1725520470918,0.04767963,132.77,132.75,0.04998132]
[1725520472615,3.81377963,132.77,132.75,0.04998132]
[1725520473522,3.7663,132.76,132.75,0.04998132]
[1725520474913,0.04767963,132.77,132.75,9.30998132]
[1725520475219,0.04767963,132.77,132.76,3.7663]
[1725520475617,1.3455,132.83,132.75,9.26]
[1725520475820,1.3455,132.83,132.74,1.3592]
[1725520475821,1.3455,132.83,132.79,13.0253]
[1725520476018,5.11,132.83,132.79,13.0253]
[1725520476422,3.7646,132.82,132.79,9.26]
[1725520476621,3.7646,132.82,132.79,9.31775802]
[1725520476622,3.81294178,132.82,132.79,9.31775802]
[1725520476820,9.30834178,132.82,132.79,0.05775802]
[1725520477715,0.04834178,132.82,132.79,0.05775802]
[1725520478518,3.81304178,132.82,132.79,0.05775802]
[1725520478719,0.04834178,132.82,132.79,9.31775802]
[1725520479125,0.04834178,132.82,132.79,13.08305802]
[1725520479920,3.81304178,132.82,132.79,13.08305802]
[1725520480724,0.04834178,132.82,132.79,13.08305802]
[1725520481322,0.04834178,132.82,132.8,13.0251]
[1725520481519,0.04834178,132.82,132.8,9.26]
[1725520482428,0.04834178,132.82,132.8,13.0251]
[1725520483227,0.04834178,132.82,132.8,3.7651]
[1725520485322,0.04834178,132.82,132.81,3.7649]
[1725520486336,0.04834178,132.82,132.8,3.7651]
[1725520488935,3.81304178,132.82,132.79,3.82315802]
[1725520489127,0.04834178,132.82,132.79,0.05775802]
[1725520489927,3.7651,132.81,132.79,0.05775802]
[1725520490137,0.04834178,132.82,132.79,0.05775802]
[1725520490533,3.81304178,132.82,132.79,0.05775802]
[1725520490733,0.04834178,132.82,132.79,3.82315802]
[1725520490930,0.04834178,132.82,132.79,13.08315802]
[1725520492439,0.04834178,132.82,132.8,3.7652]
[1725520494237,0.04834178,132.82,132.81,3.7649]
[1725520495444,0.04834178,132.82,132.81,13.0249]
[1725520495846,0.04834178,132.82,132.81,3.7649]
[1725520498046,104.27950244,132.94,132.81,9.26]
[1725520498348,9.26,132.92,132.86,9.26]
[1725520498550,13.022,132.92,132.87,3.763]
[1725520498747,9.26,132.92,132.87,3.763]
[1725520499048,3.7625,132.9,132.88,0.05758666]
[1725520500245,3.7626,132.89,132.88,0.05758666]
[1725520502349,107.98073756,132.94,132.87,3.7632]
[1725520502549,131.10073756,132.94,132.86,23.12]
[1725520502750,3.762,132.92,132.86,23.12]
[1725520502943,131.10073756,132.94,132.86,23.12]
[1725520503347,0.05106075,132.91,132.89,0.05331927]
[1725520505056,0.05106075,132.91,132.89,3.81581927]
[1725520505958,0.05106075,132.91,132.89,0.05331927]
[1725520506550,3.81326075,132.91,132.89,0.05331927]
[1725520506955,0.05106075,132.91,132.89,0.05331927]
[1725520508358,0.05106075,132.91,132.89,3.81591927]
[1725520508557,0.05106075,132.91,132.89,0.05331927]
[1725520509659,0.05106075,132.91,132.9,3.7624]
[1725520509862,1.307,132.97,132.89,24.5425]
[1725520510057,1.307,132.97,132.91,23.12]
[1725520510665,5.0676,132.97,132.92,3.7617]
[1725520510962,0.04880699,132.96,132.93,0.0484847]
[1725520511162,3.80950699,132.96,132.93,0.0484847]
[1725520512162,0.04880699,132.96,132.93,23.1684847]
[1725520512959,0.04880699,132.96,132.95,3.761]
[1725520513160,3.7596,133.0,132.93,23.12]
[1725520513356,3.7596,133.0,132.94,1.4037]
[1725520513667,3.7596,133.0,132.96,3.7605]
[1725520513862,3.7596,133.0,132.96,7.57380927]
[1725520514063,3.7593,133.01,132.97,3.7604]
[1725520514366,0.04803511,133.0,132.98,0.05265474]
[1725520514969,0.04803511,133.0,132.98,3.81255474]
[1725520515662,0.04803511,133.0,132.98,0.05265474]
[1725520517365,3.75111191,133.0,132.98,0.05265474]
[1725520517564,0.04803511,133.0,132.98,0.05265474]
[1725520517764,3.83499065,133.0,132.98,0.05265474]
[1725520517968,3.7598,132.99,132.98,0.05265474]
[1725520518165,0.04803511,133.0,132.98,0.05265474]
[1725520519161,0.04803511,133.0,132.98,3.81265474]
[1725520519365,0.04803511,133.0,132.98,0.05265474]
[1725520520563,0.04803511,133.0,132.99,23.12]
[1725520520764,3.77059138,133.07,132.99,23.12]
[1725520520968,3.7581,133.06,133.01,3.759]
[1725520521165,3.77059138,133.07,133.01,3.759]
[1725520521571,7.5029153,133.06,133.01,3.759]
[1725520521767,23.12,133.08,133.02,0.05593548]
[1725520521969,0.27644363,133.07,133.02,0.05593548]
[1725520522472,4.07805711,133.07,133.02,0.05593548]
[1725520522673,3.80161348,133.07,133.02,0.05593548]
[1725520522872,3.7582,133.05,133.02,0.05593548]
[1725520523778,26.92161348,133.07,133.02,0.05593548]
[1725520524070,23.12,133.07,133.02,0.05593548]
[1725520524274,3.79033161,133.06,133.02,0.05593548]
[1725520524874,3.7583,133.05,133.02,0.05593548]
[1725520525077,23.12,133.07,133.02,0.05593548]
[1725520525276,0.27647327,133.06,133.02,0.05593548]
[1725520526274,3.7587,133.03,133.02,0.05593548]
[1725520528876,2.7052,133.04,132.96,23.12]
[1725520529381,23.12,133.01,132.86,2.7556]
[1725520529577,23.12,133.01,132.92,23.12]
[1725520529775,3.80980561,132.98,132.95,0.05719958]
[1725520530476,23.12,132.97,132.87,1.3698]
[1725520530675,23.12,132.95,132.87,24.4898]
[1725520531373,3.7612,132.94,132.88,3.7627]
[1725520531568,24.428,132.97,132.88,3.7627]
[1725520531775,3.812931,132.94,132.91,0.05729158]
[1725520532180,0.051431,132.94,132.91,0.05729158]
[1725520532479,3.7615,132.93,132.91,0.05729158]
[1725520533176,3.812731,132.94,132.91,0.05729158]
[1725520534087,3.7615,132.93,132.91,0.05729158]
[1725520534277,0.051431,132.94,132.91,0.05729158]
[1725520534775,3.7618,132.92,132.91,0.05729158]
[1725520534982,0.051431,132.94,132.91,0.05729158]
[1725520535178,3.812731,132.94,132.91,0.05729158]
[1725520535380,0.051431,132.94,132.91,0.05729158]
[1725520536683,23.171431,132.94,132.91,0.05729158]
[1725520536880,3.7626,132.9,132.85,26.8837]
[1725520537378,23.12,132.94,132.85,26.8837]
[1725520537578,23.12,132.94,132.83,30.57382583]
[1725520537773,23.12,132.92,132.83,23.12]
[1725520537980,3.7631,132.88,132.86,0.05177238]
[1725520538374,0.05223905,132.89,132.86,0.05177238]
[1725520538581,3.7632,132.87,132.86,0.05177238]
[1725520540284,3.7639,132.85,132.82,23.12]
[1725520540580,3.7639,132.85,132.81,3.7648]
[1725520540883,3.7641,132.84,132.8,23.12]
[1725520541083,23.12,132.89,132.8,23.12]
[1725520541280,0.05788609,132.86,132.8,23.12]
[1725520541486,0.05788609,132.86,132.83,0.05267763]
[1725520541681,3.764,132.85,132.83,0.05267763]
[1725520543888,3.82158609,132.86,132.83,0.05267763]
[1725520544789,3.7638,132.85,132.83,0.05267763]
[1725520544991,0.05788609,132.86,132.83,0.05267763]
[1725520545883,0.05788609,132.86,132.83,3.81697763]
[1725520546083,0.05788609,132.86,132.83,0.05267763]
[1725520547191,3.82158609,132.86,132.83,0.05267763]
[1725520547492,0.05788609,132.86,132.83,0.05267763]
[1725520548081,3.764,132.85,132.83,0.05267763]
[1725520549289,3.7641,132.84,132.83,0.05267763]
[1725520551286,5.1297,132.84,132.83,0.05267763]
[1725520551494,3.765,132.81,132.77,7.59499008]
[1725520552389,3.765,132.81,132.77,3.7659]
[1725520552585,0.05327671,132.8,132.78,0.05756868]
[1725520553792,3.81847671,132.8,132.78,0.05756868]
[1725520554497,3.7655,132.79,132.78,0.05756868]
[1725520554789,0.05327671,132.8,132.78,0.05756868]
[1725520555292,0.05327671,132.8,132.78,23.17756868]
[1725520555502,0.05327671,132.8,132.79,26.8855]
[1725520556481,24.4786,132.89,132.81,3.7648]
[1725520556683,2.7548,132.88,132.79,23.12]
[1725520556887,3.7636,132.86,132.82,23.12]
[1725520557493,0.0572305,132.85,132.83,0.05222204]
[1725520558987,0.0572305,132.85,132.84,3.7641]
[1725520559394,0.0572305,132.85,132.83,0.05222204]
[1725520560289,0.0572305,132.85,132.84,3.7641]
[1725520561693,100.99191791,132.9,132.86,3.7633]
[1725520561889,104.75441791,132.9,132.86,3.7633]
[1725520562595,0.04847477,132.89,132.85,23.12]
[1725520562802,0.04847477,132.89,132.87,0.04818133]
[1725520563094,0.04847477,132.89,132.87,0.0544825]
[1725520564689,0.04847477,132.89,132.87,3.8176825]
[1725520564904,1.4144,132.94,132.88,23.12]
[1725520565194,26.85380536,132.97,132.88,23.12]
[1725520565396,26.85380536,132.97,132.89,3.7625]
[1725520565596,26.85380536,132.97,132.88,23.12]
[1725520565990,0.05135625,132.94,132.91,0.04940053]
[1725520566197,0.05135625,132.94,132.91,0.05747736]
[1725520567103,0.05135625,132.94,132.91,3.81937736]
[1725520567697,0.05135625,132.94,132.91,23.17747736]
[1725520568304,0.05135625,132.94,132.92,3.7615]
[1725520569195,0.05135625,132.94,132.91,26.93947736]
[1725520569402,0.05135625,132.94,132.91,0.05747736]
[1725520570098,3.81265625,132.94,132.91,0.05747736]
[1725520570299,0.05135625,132.94,132.91,0.05747736]
[1725520571002,3.7618,132.92,132.91,0.05747736]
[1725520573002,5.0589,132.93,132.91,0.05747736]
[1725520573203,3.7616,132.93,132.91,0.05747736]
[1725520576209,3.7618,132.92,132.91,0.05747736]
[1725520579110,3.7616,132.93,132.91,0.05747736]
[1725520579804,3.7618,132.92,132.91,0.05747736]
[1725520592932,3.7627,132.89,132.86,3.7633]
[1725520593525,3.7627,132.89,132.85,26.8837]
[1725520593929,0.0489938,132.88,132.86,0.05642986]
[1725520594331,0.0489938,132.88,132.86,3.81982986]
[1725520594533,0.0489938,132.88,132.86,0.05642986]
[1725520595334,0.0489938,132.88,132.87,3.7632]
[1725520596435,0.0489938,132.88,132.86,0.05642986]
[1725520596831,3.8119938,132.88,132.86,0.05642986]
[1725520597133,0.0489938,132.88,132.86,0.05642986]
[1725520597534,3.7632,132.87,132.86,0.05642986]
[1725520598537,23.12,132.88,132.73,226.0]
[1725520598732,23.12,132.88,132.78,23.12]
[1725520598733,1.3142,132.87,132.78,23.12]
[1725520598926,1.3142,132.87,132.78,26.82144534]
[1725520599136,1.3142,132.87,132.8,3.7651]
[1725520599332,1.3142,132.87,132.78,23.12]
[1725520599532,0.05109841,132.84,132.81,0.05245392]
[1725520600440,3.7644,132.83,132.81,0.05245392]
[1725520601631,3.7646,132.82,132.81,0.05245392]
[1725520604840,3.766,132.78,132.74,29.42671323]
[1725520605234,3.766,132.78,132.74,8.75041323]
[1725520605543,3.766,132.78,132.74,3.7667]
[1725520605744,3.766,132.78,132.74,7.47922071]
[1725520605937,0.05489514,132.77,132.75,0.05462542]
[1725520606533,3.82099514,132.77,132.75,0.05462542]
[1725520607341,3.7663,132.76,132.75,0.05462542]
[1725520608746,0.05489514,132.77,132.75,0.05462542]
[1725520609937,3.82099514,132.77,132.75,0.05462542]
[1725520610345,0.05489514,132.77,132.75,0.05462542]
[1725520610746,3.82099514,132.77,132.75,0.05462542]
[1725520611445,0.05489514,132.77,132.75,0.05462542]
[1725520613346,3.82109514,132.77,132.75,0.05462542]
[1725520614746,3.7663,132.76,132.75,0.05462542]
[1725520614945,104.86435944,132.87,132.75,23.17462542]
[1725520615145,27.1816,132.86,132.76,23.12]
[1725520615443,27.1816,132.86,132.78,23.12]
[1725520615645,3.7645,132.83,132.79,3.7653]
[1725520616046,0.05023918,132.82,132.8,0.05335016]
[1725520616241,3.81493918,132.82,132.8,0.05335016]
[1725520616846,3.7649,132.81,132.8,0.05335016]
[1725520617043,0.05023918,132.82,132.8,0.05335016]
[1725520617653,3.81493918,132.82,132.8,0.05335016]
[1725520618456,3.7649,132.81,132.8,0.05335016]
[1725520619851,0.05023918,132.82,132.8,23.17335016]
[1725520620247,0.05023918,132.82,132.8,0.05335016]
[1725520620450,0.05023918,132.82,132.8,23.17335016]
[1725520621458,0.05023918,132.82,132.81,3.7649]
[1725520622253,0.05023918,132.82,132.8,0.05335016]
[1725520622657,3.7491257,132.82,132.8,0.05335016]
[1725520622852,0.05023918,132.82,132.73,23.12]
[1725520623051,3.78322596,132.81,132.73,23.12]
[1725520623251,23.12,132.83,132.73,23.12]
[1725520623458,23.12,132.81,132.73,23.12]
[1725520623757,3.8457275,132.8,132.73,23.12]
[1725520623959,0.05111042,132.78,132.75,0.05024892]
[1725520624457,3.7661,132.77,132.75,0.05024892]